{"text_format":"3","workbook":"xlsx","n_sheets":3,"sheets":["Список учащихся","Список класса","Сведения об учащихся"],"not_rendered":{"images":2,"defined_names":8},"read":"whole","date_system":"1900"}

{"sheet":"Список учащихся","index":0,"n_rows":8,"n_cols":13,"rows_kept":8,"merged":[[1,2,2,3],[1,4,1,11],[2,4,2,11],[6,12,8,16]]}
[]
[null,null,"Список учащихся",null,"ПЕРЕЙТИ К СПИСКУ КЛАССА"]
[{"$nulls":4},"ПЕРЕЙТИ К СВЕДЕНИЯМ ОБ УЧАЩИХСЯ"]
[null,null,"ИМЯ УЧАЩЕГОСЯ","ЭЛЕКТРОННАЯ ПОЧТА","ДОМАШНИЙ ТЕЛЕФОН","МОБИЛЬНЫЙ ТЕЛЕФОН","ДАТА РОЖДЕНИЯ","КОНТАКТ ДЛЯ ЭКСТРЕННОЙ СВЯЗИ","ТЕЛЕФОН ДЛЯ ЭКСТРЕННОЙ СВЯЗИ","ВРАЧ","ТЕЛЕФОН ВРАЧА","  "]
[null,null,"Имя 1","Адрес электронной почты","Домашний телефон","Мобильный телефон","Дата","Контакт 1","Телефон для экстренной связи","Врач 1","Телефон врача"]
[null,null,"Имя 2","Адрес электронной почты","Домашний телефон","Мобильный телефон","Дата","Контакт 2","Телефон для экстренной связи","Врач 2","Телефон врача"]
[null,null,"Имя 3","Адрес электронной почты","Домашний телефон","Мобильный телефон","Дата","Контакт 3","Телефон для экстренной связи","Врач 3","Телефон врача",null,"Совет. Чтобы добавить учащихся в таблицу, выберите последнюю ячейку и нажмите клавишу TAB."]
[null,null,"Имя 4","Адрес электронной почты","Домашний телефон","Мобильный телефон","Дата","Контакт 4","Телефон для экстренной связи","Врач 4","Телефон врача"]

{"sheet":"Список класса","index":1,"n_rows":12,"n_cols":7,"rows_kept":12,"merged":[[1,2,2,2],[1,3,2,3],[1,4,1,6],[2,4,2,6]]}
[]
[null,null,"Список класса","Институт графического дизайна","ПЕРЕЙТИ К СПИСКУ УЧАЩИХСЯ"]
[{"$nulls":4},"ПЕРЕЙТИ К СВЕДЕНИЯМ ОБ УЧАЩИХСЯ"]
[null,null,"КУРС","Название курса","ДАТА НАЧАЛА","Дата"]
[null,null,"ПРЕПОДАВАТЕЛЬ","Преподаватель 1","ДАТА ОКОНЧАНИЯ","Дата"]
[null,null,"ЗАРЕГИСТРИРОВАННЫЕ УЧАЩИЕСЯ",{"$f":"COUNTA(СписокКласса[ИМЯ УЧАЩЕГОСЯ])","v":4}]
[]
[null,null,"ИМЯ УЧАЩЕГОСЯ","ЭЛЕКТРОННАЯ ПОЧТА","ДОМАШНИЙ ТЕЛЕФОН","МОБИЛЬНЫЙ ТЕЛЕФОН","  "]
[null,null,"Имя 1",{"$f":"IFERROR(VLOOKUP(СписокКласса[[#This Row],[ИМЯ УЧАЩЕГОСЯ]],Учащиеся[],2),\"\")","v":"Адрес электронной почты"},{"$f":"IFERROR(VLOOKUP(СписокКласса[[#This Row],[ИМЯ УЧАЩЕГОСЯ]],Учащиеся[],3),\"\")","v":"Домашний телефон"},{"$f":"IFERROR(VLOOKUP(СписокКласса[[#This Row],[ИМЯ УЧАЩЕГОСЯ]],Учащиеся[],4),\"\")","v":"Мобильный телефон"}]
[null,null,"Имя 2",{"$f":"IFERROR(VLOOKUP(СписокКласса[[#This Row],[ИМЯ УЧАЩЕГОСЯ]],Учащиеся[],2),\"\")","v":"Адрес электронной почты"},{"$f":"IFERROR(VLOOKUP(СписокКласса[[#This Row],[ИМЯ УЧАЩЕГОСЯ]],Учащиеся[],3),\"\")","v":"Домашний телефон"},{"$f":"IFERROR(VLOOKUP(СписокКласса[[#This Row],[ИМЯ УЧАЩЕГОСЯ]],Учащиеся[],4),\"\")","v":"Мобильный телефон"}]
[null,null,"Имя 3",{"$f":"IFERROR(VLOOKUP(СписокКласса[[#This Row],[ИМЯ УЧАЩЕГОСЯ]],Учащиеся[],2),\"\")","v":"Адрес электронной почты"},{"$f":"IFERROR(VLOOKUP(СписокКласса[[#This Row],[ИМЯ УЧАЩЕГОСЯ]],Учащиеся[],3),\"\")","v":"Домашний телефон"},{"$f":"IFERROR(VLOOKUP(СписокКласса[[#This Row],[ИМЯ УЧАЩЕГОСЯ]],Учащиеся[],4),\"\")","v":"Мобильный телефон"}]
[null,null,"Имя 4",{"$f":"IFERROR(VLOOKUP(СписокКласса[[#This Row],[ИМЯ УЧАЩЕГОСЯ]],Учащиеся[],2),\"\")","v":"Адрес электронной почты"},{"$f":"IFERROR(VLOOKUP(СписокКласса[[#This Row],[ИМЯ УЧАЩЕГОСЯ]],Учащиеся[],3),\"\")","v":"Домашний телефон"},{"$f":"IFERROR(VLOOKUP(СписокКласса[[#This Row],[ИМЯ УЧАЩЕГОСЯ]],Учащиеся[],4),\"\")","v":"Мобильный телефон"}]

{"sheet":"Сведения об учащихся","index":2,"n_rows":13,"n_cols":4,"rows_kept":13,"merged":[[1,2,2,2],[1,3,1,4],[2,3,2,4],[3,2,3,3]]}
[]
[null,null,"Сведения об учащихся","ПЕРЕЙТИ К СПИСКУ УЧАЩИХСЯ"]
[{"$nulls":3},"ПЕРЕЙТИ К СПИСКУ КЛАССА"]
[null,null,"СОВЕТ. ЧТОБЫ ОБНОВИТЬ СВЕДЕНИЯ ОБ УЧАЩЕМСЯ, ВЫБЕРИТЕ ЕГО В РАСКРЫВАЮЩЕМСЯ СПИСКЕ В ЯЧЕЙКЕ D5."]
[null,null,"ИМЯ УЧАЩЕГОСЯ","Имя 1"]
[null,null,"ЭЛЕКТРОННАЯ ПОЧТА",{"$f":"IFERROR(VLOOKUP(ИмяУчащегося,Учащиеся[],2,FALSE),\"\")","v":"Адрес электронной почты"}]
[null,null,"ДОМАШНИЙ ТЕЛЕФОН",{"$f":"IFERROR(VLOOKUP(ИмяУчащегося,Учащиеся[],3,FALSE),\"\")","v":"Домашний телефон"}]
[null,null,"МОБИЛЬНЫЙ ТЕЛЕФОН",{"$f":"IFERROR(VLOOKUP(ИмяУчащегося,Учащиеся[],4,FALSE),\"\")","v":"Мобильный телефон"}]
[null,null,"ДАТА РОЖДЕНИЯ",{"$f":"IFERROR(VLOOKUP(ИмяУчащегося,Учащиеся[],5,FALSE),\"\")","v":"Дата"}]
[null,null,"КОНТАКТ ДЛЯ ЭКСТРЕННОЙ СВЯЗИ",{"$f":"IFERROR(VLOOKUP(ИмяУчащегося,Учащиеся[],6,FALSE),\"\")","v":"Контакт 1"}]
[null,null,"ТЕЛЕФОН ДЛЯ ЭКСТРЕННОЙ СВЯЗИ",{"$f":"IFERROR(VLOOKUP(ИмяУчащегося,Учащиеся[],7,FALSE),\"\")","v":"Телефон для экстренной связи"}]
[null,null,"ВРАЧ",{"$f":"IFERROR(VLOOKUP(ИмяУчащегося,Учащиеся[],8,FALSE),\"\")","v":"Врач 1"}]
[null,null,"ТЕЛЕФОН ВРАЧА",{"$f":"IFERROR(VLOOKUP(ИмяУчащегося,Учащиеся[],9,FALSE),\"\")","v":"Телефон врача"}]